[Event "2021 m. Jauniu lyga. III etapas. A"]
[Site "Siauliai"]
[Date "2021.07.04"]
[Round "4.1"]
[White "Vardanyan, Aras"]
[Black "Bagdanskis, Dangis"]
[Result "1-0"]
[WhiteElo "2216"]
[BlackElo "1897"]
[PlyCount "65"]
[EventDate "2021.??.??"]
[TimeControl "8+4"]
[WhiteClock "0:03:26"]
[BlackClock "0:00:05"]

1. c4 {[%emt 0:00:01]} e6 {[%emt 0:00:36]} 2. Nc3 {[%emt 0:00:02]} Nf6 {[%emt
0:00:01]} 3. e4 {[%emt 0:00:02]} d5 {[%emt 0:00:09]} 4. e5 {[%emt 0:00:02]} d4
{[%emt 0:00:55]} 5. exf6 {[%emt 0:00:02]} dxc3 {[%emt 0:00:01]} 6. bxc3 {[%emt
0:00:01]} Qxf6 {[%emt 0:00:13]} 7. d4 {[%emt 0:00:01]} b6 {[%emt 0:00:36]} 8.
Be2 {[%emt 0:00:03]} Bb7 {[%emt 0:00:02]} 9. Bf3 {[%emt 0:00:00]} Bxf3 {[%emt
0:00:09]} 10. Nxf3 {[%emt 0:00:02]} Bd6 {[%emt 0:00:17]} 11. O-O {[%emt 0:00:
24]} O-O {[%emt 0:00:05]} 12. Re1 {[%emt 0:00:23]} Nd7 {[%emt 0:00:02]} 13. a4
{[%emt 0:00:07]} Rfe8 {[%emt 0:00:33]} 14. a5 {[%emt 0:00:11]} e5 {[%emt 0:00:
11]} 15. Qa4 {[%emt 0:00:41]} Nf8 {[%emt 0:01:46]} 16. axb6 {[%emt 0:00:06]}
cxb6 {[%emt 0:00:44]} 17. Qb5 {[%emt 0:00:59]} e4 {[%emt 0:00:35]} 18. Ng5 {
[%emt 0:00:08]} a6 {[%emt 0:00:33]} 19. Qd5 {[%emt 0:01:06]} Rad8 {[%emt 0:00:
11]} 20. Qb7 {[%emt 0:00:45]} e3 {[%emt 0:00:36]} 21. Rxe3 {[%emt 0:00:10]}
Qxg5 {[%emt 0:00:51]} 22. Rxe8 {[%emt 0:00:12]} Qh5 {[%emt 0:00:01]} 23. Re1 {
[%emt 0:00:22]} Qxh2+ {[%emt 0:00:02]} 24. Kf1 {[%emt 0:00:00]} Qh1+ {[%emt 0:
00:02]} 25. Ke2 {[%emt 0:00:00]} Re8+ {[%emt 0:00:01]} 26. Be3 {[%emt 0:00:00]}
Qh5+ {[%emt 0:00:07]} 27. Qf3 {[%emt 0:00:00]} Qg6 {[%emt 0:00:16]} 28. Kd2 {
[%emt 0:00:00]} a5 {[%emt 0:00:09]} 29. Bf4 {[%emt 0:00:20]} Bxf4+ {[%emt 0:00:
10]} 30. Qxf4 {[%emt 0:00:01]} Rd8 {[%emt 0:00:03]} 31. g3 {[%emt 0:00:30]} Ne6
{[%emt 0:00:03]} 32. Qe4 {[%emt 0:00:03]} Nc5 {[%emt 0:00:08]} 33. Qe8+ {[%emt
0:00:03]} 1-0

[Event "2021 m. Jauniu lyga. III etapas. A"]
[Site "Siauliai"]
[Date "2021.07.04"]
[Round "4.2"]
[White "Povilaitis, Tomas"]
[Black "Salna, Aleksandras"]
[Result "0-1"]
[WhiteElo "2024"]
[BlackElo "2134"]
[PlyCount "164"]
[EventDate "2021.??.??"]
[TimeControl "8+4"]
[WhiteClock "0:01:02"]
[BlackClock "0:01:26"]

1. e4 {[%emt 0:00:00]} c5 {[%emt 0:00:01]} 2. Nc3 {[%emt 0:00:03]} Nc6 {[%emt
0:00:02]} 3. Bb5 {[%emt 0:00:01]} Nd4 {[%emt 0:00:01]} 4. Bc4 {[%emt 0:00:00]}
e6 {[%emt 0:00:04]} 5. Nge2 {[%emt 0:00:02]} a6 {[%emt 0:00:08]} 6. d3 {[%emt
0:00:04]} Nc6 {[%emt 0:00:23]} 7. a4 {[%emt 0:00:14]} Nf6 {[%emt 0:00:29]} 8.
O-O {[%emt 0:00:03]} d5 {[%emt 0:00:02]} 9. Bb3 {[%emt 0:00:57]} Be7 {[%emt 0:
00:05]} 10. exd5 {[%emt 0:00:33]} exd5 {[%emt 0:00:25]} 11. Nf4 {[%emt 0:00:00]
} d4 {[%emt 0:00:06]} 12. Ncd5 {[%emt 0:00:05]} Nxd5 {[%emt 0:00:07]} 13. Nxd5
{[%emt 0:00:09]} O-O {[%emt 0:00:30]} 14. Nf4 {[%emt 0:00:27]} Bd6 {[%emt 0:00:
13]} 15. Qh5 {[%emt 0:00:22]} Qf6 {[%emt 0:00:24]} 16. Nd5 {[%emt 0:00:23]} Qf5
{[%emt 0:00:11]} 17. Qxf5 {[%emt 0:00:28]} Bxf5 {[%emt 0:00:01]} 18. Bf4 {
[%emt 0:00:02]} Bxf4 {[%emt 0:00:16]} 19. Nxf4 {[%emt 0:00:00]} Rfe8 {[%emt 0:
00:16]} 20. Rfe1 {[%emt 0:00:07]} Kf8 {[%emt 0:00:07]} 21. h3 {[%emt 0:00:19]}
a5 {[%emt 0:01:06]} 22. g4 {[%emt 0:00:03]} Bd7 {[%emt 0:00:07]} 23. Nd5 {
[%emt 0:00:03]} Rxe1+ {[%emt 0:00:29]} 24. Rxe1 {[%emt 0:00:01]} Re8 {[%emt 0:
00:03]} 25. Rxe8+ {[%emt 0:00:08]} Bxe8 {[%emt 0:00:22]} 26. f4 {[%emt 0:00:16]
} Nb4 {[%emt 0:00:02]} 27. Nb6 {[%emt 0:00:20]} Ke7 {[%emt 0:00:25]} 28. Nc4 {
[%emt 0:00:07]} Nc6 {[%emt 0:00:13]} 29. Kf2 {[%emt 0:00:07]} f6 {[%emt 0:00:
03]} 30. Nb6 {[%emt 0:00:10]} Nb4 {[%emt 0:00:09]} 31. Ke2 {[%emt 0:01:20]} h5
{[%emt 0:00:07]} 32. c3 {[%emt 0:00:05]} Nc6 {[%emt 0:00:17]} 33. Bd5 {[%emt 0:
00:10]} hxg4 {[%emt 0:00:02]} 34. hxg4 {[%emt 0:00:01]} dxc3 {[%emt 0:00:50]}
35. bxc3 {[%emt 0:00:01]} Nd8 {[%emt 0:00:18]} 36. Bb3 {[%emt 0:00:44]} Bd7 {
[%emt 0:00:35]} 37. Kf3 {[%emt 0:00:19]} Bc6+ {[%emt 0:00:22]} 38. Ke3 {[%emt
0:00:01]} Bh1 {[%emt 0:00:07]} 39. g5 {[%emt 0:00:22]} fxg5 {[%emt 0:00:03]}
40. fxg5 {[%emt 0:00:01]} Ne6 {[%emt 0:00:28]} 41. g6 {[%emt 0:00:52]} Nd8 {
[%emt 0:00:04]} 42. Nd5+ {[%emt 0:00:06]} Bxd5 {[%emt 0:00:11]} 43. Bxd5 {
[%emt 0:00:01]} Kf6 {[%emt 0:00:01]} 44. Be4 {[%emt 0:00:09]} b6 {[%emt 0:00:
06]} 45. d4 {[%emt 0:00:01]} Ne6 {[%emt 0:00:03]} 46. dxc5 {[%emt 0:00:50]}
Nxc5 {[%emt 0:00:02]} 47. Bc2 {[%emt 0:00:00]} Ke5 {[%emt 0:00:02]} 48. Bd1 {
[%emt 0:00:07]} Kd5 {[%emt 0:00:06]} 49. Bc2 {[%emt 0:00:30]} Kc4 {[%emt 0:00:
02]} 50. Kd2 {[%emt 0:00:04]} Nb3+ {[%emt 0:00:09]} 51. Bxb3+ {[%emt 0:00:01]}
Kxb3 {[%emt 0:00:01]} 52. Kd3 {[%emt 0:00:00]} Kxa4 {[%emt 0:00:03]} 53. Kc4 {
[%emt 0:00:01]} Ka3 {[%emt 0:00:11]} 54. Kd5 {[%emt 0:00:10]} b5 {[%emt 0:00:
12]} 55. Ke6 {[%emt 0:00:02]} b4 {[%emt 0:00:01]} 56. cxb4 {[%emt 0:00:05]}
axb4 {[%emt 0:00:01]} 57. Kf7 {[%emt 0:00:01]} b3 {[%emt 0:00:02]} 58. Kxg7 {
[%emt 0:00:01]} b2 {[%emt 0:00:01]} 59. Kh8 {[%emt 0:00:05]} b1=Q {[%emt 0:00:
02]} 60. g7 {[%emt 0:00:01]} Qb2 {[%emt 0:00:02]} 61. Kh7 {[%emt 0:00:02]} Qh2+
{[%emt 0:00:02]} 62. Kg6 {[%emt 0:00:01]} Qg3+ {[%emt 0:00:02]} 63. Kf7 {[%emt
0:00:01]} Qf4+ {[%emt 0:00:01]} 64. Kg6 {[%emt 0:00:06]} Qg4+ {[%emt 0:00:03]}
65. Kf7 {[%emt 0:00:02]} Qf5+ {[%emt 0:00:02]} 66. Ke8 {[%emt 0:00:02]} Qg6+ {
[%emt 0:00:02]} 67. Kf8 {[%emt 0:00:00]} Qf6+ {[%emt 0:00:02]} 68. Kg8 {[%emt
0:00:01]} Kb4 {[%emt 0:00:01]} 69. Kh7 {[%emt 0:00:02]} Qh4+ {[%emt 0:00:01]}
70. Kg6 {[%emt 0:00:01]} Qg4+ {[%emt 0:00:02]} 71. Kh7 {[%emt 0:00:01]} Qh5+ {
[%emt 0:00:02]} 72. Kg8 {[%emt 0:00:01]} Kc5 {[%emt 0:00:01]} 73. Kf8 {[%emt 0:
00:00]} Qf5+ {[%emt 0:00:02]} 74. Ke7 {[%emt 0:00:01]} Qg6 {[%emt 0:00:03]} 75.
Kf8 {[%emt 0:00:01]} Qf6+ {[%emt 0:00:01]} 76. Kg8 {[%emt 0:00:01]} Kd5 {[%emt
0:00:02]} 77. Kh7 {[%emt 0:00:01]} Qh4+ {[%emt 0:00:01]} 78. Kg6 {[%emt 0:00:
02]} Qg4+ {[%emt 0:00:01]} 79. Kf7 {[%emt 0:00:01]} Qf5+ {[%emt 0:00:03]} 80.
Ke8 {[%emt 0:00:01]} Kd6 {[%emt 0:00:09]} 81. g8=Q {[%emt 0:00:11]} Qd7+ {
[%emt 0:00:01]} 82. Kf8 {[%emt 0:00:02]} Qe7# {[%emt 0:00:01]} 0-1

[Event "2021 m. Jauniu lyga. III etapas. A"]
[Site "Siauliai"]
[Date "2021.07.04"]
[Round "4.3"]
[White "Morkunas, Gustas"]
[Black "Bagvilas, Lukas"]
[Result "0-1"]
[WhiteElo "1940"]
[BlackElo "1973"]
[PlyCount "120"]
[EventDate "2021.??.??"]
[TimeControl "8+4"]
[WhiteClock "0:00:08"]
[BlackClock "0:00:31"]

1. e4 {[%emt 0:00:01]} c6 {[%emt 0:00:02]} 2. d4 {[%emt 0:00:01]} d5 {[%emt 0:
00:00]} 3. exd5 {[%emt 0:00:02]} cxd5 {[%emt 0:00:01]} 4. Bd3 {[%emt 0:00:01]}
Nc6 {[%emt 0:00:01]} 5. c3 {[%emt 0:00:01]} Nf6 {[%emt 0:00:02]} 6. h3 {[%emt
0:00:01]} g6 {[%emt 0:00:02]} 7. Nf3 {[%emt 0:00:04]} Bf5 {[%emt 0:00:01]} 8.
Be2 {[%emt 0:00:02]} Bg7 {[%emt 0:00:03]} 9. O-O {[%emt 0:00:04]} O-O {[%emt 0:
00:03]} 10. Bf4 {[%emt 0:00:36]} Re8 {[%emt 0:00:53]} 11. Nbd2 {[%emt 0:00:05]}
Nd7 {[%emt 0:00:12]} 12. Re1 {[%emt 0:00:19]} Nb6 {[%emt 0:00:32]} 13. Bf1 {
[%emt 0:00:22]} Rc8 {[%emt 0:00:01]} 14. Rc1 {[%emt 0:00:02]} h5 {[%emt 0:00:
18]} 15. b4 {[%emt 0:00:21]} Nd7 {[%emt 0:01:40]} 16. b5 {[%emt 0:01:49]} Na5 {
[%emt 0:00:03]} 17. c4 {[%emt 0:00:02]} dxc4 {[%emt 0:00:10]} 18. Nxc4 {[%emt
0:00:07]} Nxc4 {[%emt 0:00:02]} 19. Bxc4 {[%emt 0:00:03]} Nb6 {[%emt 0:00:09]}
20. Bb3 {[%emt 0:00:02]} Nd5 {[%emt 0:00:12]} 21. Rxc8 {[%emt 0:00:45]} Bxc8 {
[%emt 0:00:01]} 22. Bh2 {[%emt 0:00:06]} Bf5 {[%emt 0:00:55]} 23. Ne5 {[%emt 0:
00:49]} Be6 {[%emt 0:01:13]} 24. Qf3 {[%emt 0:01:58]} Rf8 {[%emt 0:00:41]} 25.
Qe2 {[%emt 0:00:33]} Bc8 {[%emt 0:00:57]} 26. Qf3 {[%emt 0:00:22]} e6 {[%emt 0:
00:04]} 27. Rc1 {[%emt 0:00:30]} b6 {[%emt 0:00:18]} 28. Nc6 {[%emt 0:00:03]}
Qd7 {[%emt 0:00:01]} 29. Bxd5 {[%emt 0:00:37]} exd5 {[%emt 0:00:01]} 30. Qxd5 {
[%emt 0:00:03]} Qxd5 {[%emt 0:00:27]} 31. Ne7+ {[%emt 0:00:01]} Kh8 {[%emt 0:
00:06]} 32. Nxd5 {[%emt 0:00:02]} Bxd4 {[%emt 0:00:02]} 33. Ne7 {[%emt 0:00:14]
} Bc5 {[%emt 0:00:10]} 34. Nd5 {[%emt 0:00:06]} Rd8 {[%emt 0:00:34]} 35. Be5+ {
[%emt 0:00:02]} Kh7 {[%emt 0:00:04]} 36. Nf6+ {[%emt 0:00:02]} Kh6 {[%emt 0:00:
02]} 37. Ne4 {[%emt 0:00:07]} Rd5 {[%emt 0:00:13]} 38. Bf4+ {[%emt 0:00:05]}
Kg7 {[%emt 0:00:01]} 39. Bg3 {[%emt 0:00:06]} Be6 {[%emt 0:00:01]} 40. Nc3 {
[%emt 0:00:03]} Rd2 {[%emt 0:00:02]} 41. a4 {[%emt 0:00:02]} Bf5 {[%emt 0:00:
08]} 42. Be5+ {[%emt 0:00:04]} f6 {[%emt 0:00:01]} 43. Bg3 {[%emt 0:00:01]} Kf7
{[%emt 0:00:01]} 44. a5 {[%emt 0:00:06]} bxa5 {[%emt 0:00:10]} 45. Na4 {[%emt
0:00:06]} Bb6 {[%emt 0:00:08]} 46. Nc3 {[%emt 0:00:06]} Bc2 {[%emt 0:00:03]}
47. Kh2 {[%emt 0:00:07]} g5 {[%emt 0:00:04]} 48. h4 {[%emt 0:00:01]} Bxf2 {
[%emt 0:00:03]} 49. Bxf2 {[%emt 0:00:01]} Rxf2 {[%emt 0:00:01]} 50. hxg5 {
[%emt 0:00:02]} fxg5 {[%emt 0:00:01]} 51. Ra1 {[%emt 0:00:04]} a4 {[%emt 0:00:
04]} 52. Nxa4 {[%emt 0:00:06]} Be4 53. Rg1 {[%emt 0:00:04]} Rc2 {[%emt 0:00:04]
} 54. b6 {[%emt 0:00:02]} axb6 {[%emt 0:00:03]} 55. Nxb6 {[%emt 0:00:01]} Ke6 {
[%emt 0:00:02]} 56. Kg3 {[%emt 0:00:08]} Kf5 {[%emt 0:00:08]} 57. Rf1+ {[%emt
0:00:07]} Kg6 {[%emt 0:00:01]} 58. Rg1 {[%emt 0:00:02]} h4+ {[%emt 0:00:01]}
59. Kg4 {[%emt 0:00:09]} Rc3 {[%emt 0:00:04]} 60. Rf1 {[%emt 0:00:05]} Rg3# {
[%emt 0:00:01]} 0-1

[Event "2021 m. Jauniu lyga. III etapas. A"]
[Site "Siauliai"]
[Date "2021.07.04"]
[Round "5.1"]
[White "Salna, Aleksandras"]
[Black "Morkunas, Gustas"]
[Result "1-0"]
[WhiteElo "2134"]
[BlackElo "1940"]
[PlyCount "95"]
[EventDate "2021.??.??"]
[TimeControl "8+4"]
[WhiteClock "0:04:30"]
[BlackClock "0:00:11"]

1. d4 {[%emt 0:00:01]} Nf6 {[%emt 0:00:02]} 2. Bf4 {[%emt 0:00:02]} g6 {[%emt
0:00:02]} 3. e3 {[%emt 0:00:01]} Bg7 {[%emt 0:00:01]} 4. Nf3 {[%emt 0:00:02]}
d6 {[%emt 0:00:02]} 5. h3 {[%emt 0:00:03]} O-O {[%emt 0:00:03]} 6. Be2 {[%emt
0:00:02]} Nbd7 {[%emt 0:00:07]} 7. O-O {[%emt 0:00:03]} Qe8 {[%emt 0:00:07]} 8.
Bh2 {[%emt 0:00:02]} e5 {[%emt 0:00:15]} 9. c3 {[%emt 0:00:14]} Qe7 {[%emt 0:
00:11]} 10. a4 {[%emt 0:00:04]} a5 {[%emt 0:00:34]} 11. Na3 {[%emt 0:00:04]}
Ne8 {[%emt 0:00:53]} 12. Rc1 {[%emt 0:00:27]} e4 {[%emt 0:00:33]} 13. Nd2 {
[%emt 0:00:02]} f5 {[%emt 0:00:02]} 14. b4 {[%emt 0:00:24]} g5 {[%emt 0:00:48]}
15. Nac4 {[%emt 0:00:08]} axb4 {[%emt 0:00:28]} 16. cxb4 {[%emt 0:00:02]} d5 {
[%emt 0:00:31]} 17. Ne5 {[%emt 0:00:59]} Nxe5 {[%emt 0:00:37]} 18. Bxe5 {[%emt
0:00:20]} Bxe5 {[%emt 0:00:05]} 19. dxe5 {[%emt 0:00:02]} Qxe5 {[%emt 0:00:13]}
20. b5 {[%emt 0:00:07]} Be6 {[%emt 0:00:45]} 21. Nb3 {[%emt 0:00:08]} b6 {
[%emt 0:00:02]} 22. Nd4 {[%emt 0:00:33]} Bd7 {[%emt 0:00:06]} 23. Nc6 {[%emt 0:
00:21]} Qd6 {[%emt 0:01:11]} 24. Qd4 {[%emt 0:00:04]} f4 {[%emt 0:00:07]} 25.
exf4 {[%emt 0:01:04]} gxf4 {[%emt 0:00:14]} 26. Rfd1 {[%emt 0:00:03]} f3 {
[%emt 0:00:50]} 27. Qxd5+ {[%emt 0:00:12]} Qxd5 {[%emt 0:00:09]} 28. Rxd5 {
[%emt 0:00:01]} Bxc6 {[%emt 0:00:06]} 29. Bc4 {[%emt 0:00:05]} Kh8 {[%emt 0:00:
28]} 30. bxc6 {[%emt 0:00:04]} Nd6 {[%emt 0:00:02]} 31. Rxd6 {[%emt 0:00:09]}
cxd6 {[%emt 0:00:06]} 32. c7 {[%emt 0:00:01]} Rxa4 {[%emt 0:00:28]} 33. Be6 {
[%emt 0:00:02]} Raa8 {[%emt 0:00:08]} 34. c8=Q {[%emt 0:00:05]} Raxc8 {[%emt 0:
00:01]} 35. Rxc8 {[%emt 0:00:10]} Rxc8 {[%emt 0:00:02]} 36. Bxc8 {[%emt 0:00:
01]} fxg2 {[%emt 0:00:04]} 37. Bb7 {[%emt 0:00:04]} Kg7 {[%emt 0:00:04]} 38.
Bxe4 {[%emt 0:00:02]} h6 {[%emt 0:00:04]} 39. Kxg2 {[%emt 0:00:01]} Kf6 {[%emt
0:00:01]} 40. f4 {[%emt 0:00:01]} b5 {[%emt 0:00:02]} 41. Kf3 {[%emt 0:00:02]}
b4 {[%emt 0:00:02]} 42. Ke3 {[%emt 0:00:01]} Ke6 {[%emt 0:00:02]} 43. Kd4 {
[%emt 0:00:02]} b3 {[%emt 0:00:12]} 44. Kc3 {[%emt 0:00:03]} d5 {[%emt 0:00:01]
} 45. Bd3 {[%emt 0:00:01]} Kf6 {[%emt 0:00:12]} 46. Kxb3 {[%emt 0:00:04]} h5 {
[%emt 0:00:05]} 47. Kc3 {[%emt 0:00:03]} h4 {[%emt 0:00:01]} 48. Kd4 {[%emt 0:
00:00]} 1-0

[Event "2021 m. Jauniu lyga. III etapas. A"]
[Site "Siauliai"]
[Date "2021.07.04"]
[Round "5.2"]
[White "Bagdanskis, Dangis"]
[Black "Povilaitis, Tomas"]
[Result "0-1"]
[WhiteElo "1897"]
[BlackElo "2024"]
[PlyCount "69"]
[EventDate "2021.??.??"]
[TimeControl "8+4"]
[BlackClock "0:00:12"]

1. e4 {[%emt 0:00:00]} c5 {[%emt 0:00:02]} 2. Nf3 {[%emt 0:00:00]} Nc6 {[%emt
0:00:01]} 3. d4 {[%emt 0:00:00]} cxd4 {[%emt 0:00:02]} 4. Nxd4 {[%emt 0:00:00]}
e5 {[%emt 0:00:00]} 5. Nb5 {[%emt 0:00:01]} d6 {[%emt 0:00:01]} 6. N1c3 {[%emt
0:00:00]} a6 {[%emt 0:00:02]} 7. Bg5 {[%emt 0:00:00]} f6 {[%emt 0:00:41]} 8.
Be3 {[%emt 0:00:01]} axb5 {[%emt 0:00:05]} 9. Nd5 {[%emt 0:00:00]} Ra4 {[%emt
0:00:08]} 10. b4 {[%emt 0:00:33]} Rxb4 {[%emt 0:01:39]} 11. Nxb4 {[%emt 0:00:
02]} Nxb4 {[%emt 0:00:02]} 12. Bxb5+ {[%emt 0:00:20]} Bd7 {[%emt 0:00:32]} 13.
Bxd7+ {[%emt 0:00:44]} Qxd7 {[%emt 0:00:01]} 14. c3 {[%emt 0:00:43]} Nc6 {
[%emt 0:00:02]} 15. Rb1 {[%emt 0:00:11]} Nge7 {[%emt 0:00:56]} 16. O-O {[%emt
0:00:10]} Na5 {[%emt 0:00:28]} 17. Bb6 {[%emt 0:01:19]} Nc4 {[%emt 0:00:11]}
18. Qd3 {[%emt 0:00:35]} Qc6 {[%emt 0:00:45]} 19. Be3 {[%emt 0:00:08]} Nc8 {
[%emt 0:01:32]} 20. Rb4 {[%emt 0:00:57]} Nxe3 {[%emt 0:00:06]} 21. Qxe3 {[%emt
0:00:19]} d5 {[%emt 0:00:14]} 22. exd5 {[%emt 0:00:07]} Qxd5 {[%emt 0:00:01]}
23. Rd4 {[%emt 0:00:26]} Qc6 {[%emt 0:00:19]} 24. f4 {[%emt 0:01:11]} Bc5 {
[%emt 0:00:19]} 25. fxe5 {[%emt 0:00:02]} Bxd4 {[%emt 0:00:06]} 26. cxd4 {
[%emt 0:00:28]} O-O {[%emt 0:00:04]} 27. Qb3+ {[%emt 0:00:14]} Kh8 {[%emt 0:00:
05]} 28. Kh1 {[%emt 0:00:27]} Rd8 {[%emt 0:00:15]} 29. exf6 {[%emt 0:00:24]}
gxf6 {[%emt 0:00:05]} 30. Qf7 {[%emt 0:00:01]} Rg8 {[%emt 0:00:50]} 31. d5 {
[%emt 0:00:11]} Qb6 {[%emt 0:00:32]} 32. h3 {[%emt 0:00:13]} Na7 {[%emt 0:00:
07]} 33. Rxf6 {[%emt 0:00:02]} Qb2 {[%emt 0:00:01]} 34. Rf2 {[%emt 0:00:05]}
Qg7 {[%emt 0:00:01]} 35. Qf4 {[%emt 0:00:06]} 0-1

[Event "2021 m. Jauniu lyga. III etapas. A"]
[Site "Siauliai"]
[Date "2021.07.04"]
[Round "5.3"]
[White "Posaskov, Nikita"]
[Black "Vardanyan, Aras"]
[Result "0-1"]
[WhiteElo "1862"]
[BlackElo "2216"]
[PlyCount "57"]
[EventDate "2021.??.??"]
[TimeControl "8+4"]
[BlackClock "0:05:48"]

1. d4 {[%emt 0:00:00]} Nf6 {[%emt 0:00:04]} 2. c4 {[%emt 0:00:00]} Nc6 {[%emt
0:00:06]} 3. Nf3 {[%emt 0:00:02]} e6 {[%emt 0:00:04]} 4. Nc3 {[%emt 0:00:03]}
Bb4 {[%emt 0:00:02]} 5. e3 {[%emt 0:00:09]} O-O {[%emt 0:00:04]} 6. Bd3 {[%emt
0:00:02]} d6 {[%emt 0:00:02]} 7. O-O {[%emt 0:00:07]} e5 {[%emt 0:00:02]} 8. d5
{[%emt 0:00:34]} Nb8 {[%emt 0:00:16]} 9. Qc2 {[%emt 0:00:43]} Bxc3 {[%emt 0:00:
02]} 10. bxc3 {[%emt 0:00:01]} Nbd7 {[%emt 0:00:08]} 11. Bf5 {[%emt 0:00:40]}
Nb6 {[%emt 0:00:39]} 12. Bxc8 {[%emt 0:00:22]} Qxc8 {[%emt 0:00:02]} 13. c5 {
[%emt 0:01:03]} Nbxd5 {[%emt 0:00:10]} 14. Ba3 {[%emt 0:00:08]} dxc5 {[%emt 0:
00:37]} 15. c4 {[%emt 0:00:28]} Nb4 {[%emt 0:00:17]} 16. Bxb4 {[%emt 0:00:15]}
cxb4 {[%emt 0:00:02]} 17. Nxe5 {[%emt 0:00:00]} Qe6 {[%emt 0:00:02]} 18. Nd3 {
[%emt 0:00:15]} a5 {[%emt 0:00:07]} 19. Rfb1 {[%emt 0:00:43]} Rfd8 {[%emt 0:00:
09]} 20. a3 {[%emt 0:00:36]} Qe4 {[%emt 0:00:01]} 21. Rd1 {[%emt 0:00:31]} c5 {
[%emt 0:00:27]} 22. axb4 {[%emt 0:01:28]} axb4 {[%emt 0:00:12]} 23. Rxa8 {
[%emt 0:00:10]} Rxa8 {[%emt 0:00:01]} 24. Qb3 {[%emt 0:00:04]} b6 {[%emt 0:00:
02]} 25. Nf4 {[%emt 0:00:12]} h5 {[%emt 0:00:16]} 26. f3 {[%emt 0:00:42]} Qe5 {
[%emt 0:00:07]} 27. Re1 {[%emt 0:00:24]} Ra3 {[%emt 0:00:03]} 28. Qd1 {[%emt 0:
00:04]} Rxe3 {[%emt 0:00:05]} 29. Kf1 {[%emt 0:00:06]} 0-1

[Event "2021 m. Jauniu lyga. III etapas. A"]
[Site "Siauliai"]
[Date "2021.07.04"]
[Round "6.1"]
[White "Povilaitis, Tomas"]
[Black "Posaskov, Nikita"]
[Result "1-0"]
[WhiteElo "2024"]
[BlackElo "1862"]
[PlyCount "65"]
[EventDate "2021.??.??"]
[TimeControl "8+4"]
[WhiteClock "0:04:25"]
[BlackClock "0:00:06"]

1. e4 {[%emt 0:00:00]} c5 {[%emt 0:00:00]} 2. Nc3 {[%emt 0:00:02]} Nc6 {[%emt
0:00:01]} 3. Bb5 {[%emt 0:00:01]} Nd4 {[%emt 0:00:00]} 4. Bc4 {[%emt 0:00:00]}
e6 {[%emt 0:00:01]} 5. Nge2 {[%emt 0:00:02]} a6 {[%emt 0:00:26]} 6. d3 {[%emt
0:00:03]} Ne7 {[%emt 0:00:22]} 7. O-O {[%emt 0:00:02]} Nec6 {[%emt 0:00:02]} 8.
f4 {[%emt 0:00:12]} Be7 {[%emt 0:00:21]} 9. Ng3 {[%emt 0:00:06]} b5 {[%emt 0:
00:38]} 10. Bb3 {[%emt 0:00:01]} a5 {[%emt 0:00:28]} 11. a4 {[%emt 0:00:15]}
Nxb3 {[%emt 0:00:51]} 12. cxb3 {[%emt 0:00:01]} b4 {[%emt 0:00:51]} 13. Nb1 {
[%emt 0:00:11]} d6 {[%emt 0:00:22]} 14. Qg4 {[%emt 0:00:10]} Bf6 {[%emt 0:00:
31]} 15. Nd2 {[%emt 0:00:31]} Nd4 {[%emt 0:00:36]} 16. Nc4 {[%emt 0:00:57]}
Nxb3 {[%emt 0:00:33]} 17. Rb1 {[%emt 0:00:00]} Nxc1 {[%emt 0:00:00]} 18. Rbxc1
{[%emt 0:00:01]} Ba6 {[%emt 0:00:25]} 19. e5 {[%emt 0:00:33]} Bxc4 {[%emt 0:01:
14]} 20. exf6 {[%emt 0:00:02]} Bxd3 {[%emt 0:00:02]} 21. Qxg7 {[%emt 0:00:20]}
Rf8 {[%emt 0:00:19]} 22. Rfe1 {[%emt 0:00:20]} c4 {[%emt 0:00:15]} 23. Ne4 {
[%emt 0:00:38]} Bxe4 {[%emt 0:00:03]} 24. Rxe4 {[%emt 0:00:02]} d5 25. Re5 {
[%emt 0:00:06]} Qb6+ {[%emt 0:00:02]} 26. Kh1 {[%emt 0:00:03]} O-O-O {[%emt 0:
00:05]} 27. f5 {[%emt 0:00:40]} Qd4 {[%emt 0:00:56]} 28. fxe6 {[%emt 0:00:04]}
Qxe5 {[%emt 0:00:19]} 29. e7 {[%emt 0:00:00]} Qe6 {[%emt 0:00:09]} 30. exf8=Q {
[%emt 0:00:09]} Qe3 {[%emt 0:00:04]} 31. Qg4+ {[%emt 0:00:13]} Kc7 {[%emt 0:00:
03]} 32. Qxf7+ {[%emt 0:00:01]} Kc6 {[%emt 0:00:05]} 33. Qfe6+ {[%emt 0:00:01]}
1-0

[Event "2021 m. Jauniu lyga. III etapas. A"]
[Site "Siauliai"]
[Date "2021.07.04"]
[Round "6.2"]
[White "Morkunas, Gustas"]
[Black "Bagdanskis, Dangis"]
[Result "1-0"]
[WhiteElo "1940"]
[BlackElo "1897"]
[PlyCount "69"]
[EventDate "2021.??.??"]
[TimeControl "8+4"]
[WhiteClock "0:01:02"]
[BlackClock "0:00:58"]

1. e4 {[%emt 0:00:02]} c6 {[%emt 0:00:01]} 2. d4 {[%emt 0:00:02]} d5 {[%emt 0:
00:01]} 3. exd5 {[%emt 0:00:02]} cxd5 {[%emt 0:00:00]} 4. Bd3 {[%emt 0:00:01]}
Nc6 {[%emt 0:00:02]} 5. c3 {[%emt 0:00:01]} Nf6 {[%emt 0:00:02]} 6. h3 {[%emt
0:00:03]} g6 {[%emt 0:00:19]} 7. Bf4 {[%emt 0:00:05]} Bf5 {[%emt 0:00:03]} 8.
Be2 {[%emt 0:00:04]} Bxb1 {[%emt 0:00:14]} 9. Rxb1 {[%emt 0:00:03]} Bg7 {[%emt
0:00:02]} 10. Nf3 {[%emt 0:00:08]} Ne4 {[%emt 0:00:32]} 11. O-O {[%emt 0:00:13]
} O-O {[%emt 0:00:02]} 12. Re1 {[%emt 0:00:38]} e6 {[%emt 0:00:26]} 13. Bf1 {
[%emt 0:00:42]} Rc8 {[%emt 0:00:08]} 14. Nd2 {[%emt 0:00:59]} Nd6 {[%emt 0:00:
02]} 15. b4 {[%emt 0:00:10]} a6 {[%emt 0:00:23]} 16. a4 {[%emt 0:00:12]} Ne7 {
[%emt 0:00:29]} 17. Qf3 {[%emt 0:00:19]} Qd7 {[%emt 0:00:35]} 18. Nb3 {[%emt 0:
00:37]} Ne4 {[%emt 0:00:31]} 19. Nc5 {[%emt 0:00:14]} Nxc5 {[%emt 0:00:06]} 20.
bxc5 {[%emt 0:00:03]} Qxa4 {[%emt 0:00:04]} 21. Rxb7 {[%emt 0:00:09]} Nc6 {
[%emt 0:00:40]} 22. Bd6 {[%emt 0:00:06]} Na5 {[%emt 0:01:16]} 23. Rb4 {[%emt 0:
00:15]} Qa3 {[%emt 0:00:31]} 24. Bxf8 {[%emt 0:00:09]} Rxf8 {[%emt 0:00:01]}
25. Bxa6 {[%emt 0:00:20]} Bxd4 {[%emt 0:00:02]} 26. Rxd4 {[%emt 0:00:08]} Nb3 {
[%emt 0:00:05]} 27. Rb4 {[%emt 0:00:10]} Nxc5 {[%emt 0:00:20]} 28. Bf1 {[%emt
0:00:08]} Ne4 {[%emt 0:00:03]} 29. Rexe4 {[%emt 0:00:52]} dxe4 {[%emt 0:00:06]}
30. Rxe4 {[%emt 0:00:00]} Rb8 {[%emt 0:00:19]} 31. Rd4 {[%emt 0:01:11]} Kg7 {
[%emt 0:01:17]} 32. Rd7 {[%emt 0:00:12]} Rf8 {[%emt 0:00:06]} 33. Qd3 {[%emt 0:
00:27]} Qc1 {[%emt 0:00:07]} 34. Qd4+ {[%emt 0:00:20]} Kh6 {[%emt 0:00:22]} 35.
Qd2+ {[%emt 0:00:20]} 1-0